Workbook

Sheet стр.1_6
CD1: Приложение
CD2: к приказу министерства образования Кировской области
CD3: от 2016 г. № 5-
A7: СОГЛАСОВАНО | BG7: УТВЕРЖДАЮ
A8: Министр образования | BG8: Руководитель учреждения
A9: Кировской области
BV10: Е.В. Трубицына
A11: _______________ | P11: О.Н Рысева | BG11: Подпись | BV11: Ф.И.О.
A12: Дата | BG12: Дата | BM12: 01.03.2018
A15: ОТЧЕТ
A16: о результатах деятельности областного государственного учреждения,
A17: подведомственного министерству образования Кировской области
A18: и об использовании закрепленного за ним
BG19: имущества за 20 | BH19: 17 | BL19: год
A21: Наименование областного
A22: государственного учреждения:
A23: КОГОБУ "Центр дистанционного образования детей"
B27: Идентификационный номер Налогоплательщика (ИНН) | AP27: 4345308731
B28: Код причины постановки на учет учреждения (КПП) | AP28: 434501001
B29: Единицы измерения показателей: руб.коп. | AP29: по ОКЕИ
B30: Наименование органа, осуществляющего функции и полномочия учредителя | AP30: Министерство образования Кировской области
B31: Адрес фактического местонахождения областного государственного учреждения | AP31: 610006, Кировская обл., г. Киров.,ул. Лепсе, д.10
H33: I. Общие сведения об областном государственном учреждении
A35: 1.1. Основной вид деятельности учреждения:
A37: № п/п | F37: Код ОКВЭД | W37: Вид деятельности
A38: 1 | F38: 85.12 | W38: Образование начальное общее
A39: 2 | F39: 85.13 | W39: Образование основное общее
A40: 4 | F40: 85.14 | W40: Образование среднее общее
A42: 1.2._Иные виды деятельности, которые учреждение вправе осуществлять в соответствии с его учредительными документами:
A44: № п/п | F44: Код ОКВЭД | W44: Вид деятельности
A45: 1 | F45: 85.41.9 | W45: Образование дополнительное детей и взрослых прочее, не включенное в другие группировки
A47: 1.3._Перечень услуг (работ), которые оказываются учреждением потребителям за плату в случаях, предусмотренных нормативными правовыми актами, с указанием потребителей указанных услуг (работ):
A49: № п/п | F49: Наименование услуги (работы) | AW49: Категории потребителей услуги (работы) | BZ49: Единицы измерения показателя объема (содержания) услуги (работы)
A50: 1 | F50: Реализация программ дополнительного образования | AW50: Учащиеся | BZ50: час
A52: 1.4._Перечень разрешительных документов, на основании которых учреждение осуществляет деятельность (в случае, если виды деятельности учреждения, предусмотренные его учредительными документами, могут осуществляться только на основании специальных разрешений (лицензий):
A53: № п/п | F53: Наименование документа услуги (работы) | AW53: Номер, дата выдачи | BZ53: срок действия
A54: 1 | F54: Лицензия на право обеспечения образовательной деятельности | AW54: № 1309 от 10.06.2016 | BZ54: Бессрочно
A55: 2 | F55: Устав, утвержден министерством образования | AW55: № 2-994 от 21.12.2015
A57: 1.5. Сведения о численности работников учреждения:
A59: Наименование показателя | BI59: На начало отчетного периода | CG59: На конец отчетного периода
B60: Общее число штатных единиц учреждения | BI60: 143 | CG60: 143
B61: из них:
B62: Общее число штатных единиц административно-управленческого, административно-хозяйственного, вспомогательного и иного персонала, не принимавшего непосредственного участия в оказании учреждением государственных услуг (выполнении работ) | BI62: 16 | CG62: 16
B63: Фактическая численность сотрудников учреждений | BI63: 93 | CG63: 92
B64: из них:
B65: Общее количество сотрудников административно-управленческого, административно-хозяйственного, вспомогательного и иного персонала, не принимавшего непосредственного участия в оказании учреждением государственных услуг (выполнении работ) | BI65: 13 | CG65: 13
B66: Численность сотрудников учреждения, прошедших повышение квалификации | BI66: Х | CG66: 48
A68: 1.6. Средняя заработная плата сотрудников учреждения за отчетный период:
A70: Наименование показателя | AN70: Среднегодовая заработная плата
AN71: За счет средств областного бюджета | BK71: За счет средств от оказания платных услуг и иной приносящей доход деятельности | CL71: Итого
B72: Средняя заработная плата сотрудников учреждения | AN72: 22033.98 | BK72: 8467 | CL72: 23263.17
H74: II. Результат деятельности учреждения
A76: № п/п | G76: Наименование показателя | BA76: На начало отчетного периода | BU76: На конец отчетного периода | CO76: В % к предыдущему отчетному периоду
A77: 1 | H77: Балансовая(остаточная) стоимость нефинансовых активов | BA77: 84093521.55 | BU77: 75560927.63 | CO77: -0.101
A78: 2 | H78: Дебиторская задолженность в разрезе выплат, предусмотренных планом ФХД | BA78: 415274.58 | BU78: 224538.15 | CO78: -0.46
A79: 2.1 | H79: Расчеты по авансам по коммунальным услугам | BA79: 20984.31 | BU79: 43218.39 | CO79: 2.06
A80: 2.2 | H80: Расчеты по авансам по прочим работам, услугам | BA80: 15085 | BU80: 3030 | CO80: -0.8
A81: 2.3 | H81: Расчеты с подотчетными лицами по приобретению материальных запасов
A82: 2.4 | H82: Расчеты по страховым взносам на обязательное социальное страхование на случай временной нетрудоспособности и в связи с материнством | BA82: 234780.49 | BU82: 58907.27 | CO82: -0.75
A83: 2.5 | H83: Расчеты с плательщиками доходов от оказания платных работ, услуг | BA83: 144424.78 | BU83: 85518.49 | CO83: -0.41
A84: 2.6 | H84: Расчеты по земельному налогу | BA84: 0 | BU84: 33864 | CO84: 1
A85: 3. | H85: Нереальная к взысканию дебиторская задолженность
A86: 4. | H86: Кредиторская задолженность в разрезе выплат, предусмотренных планом ФХД | BA86: =BA87+BA88+BA89+BA90+BA91+BA92+BA93+BA94+BA95+BA96+BA97+BA98+BA99+BA100+BA101 -> 2212760.09 | BU86: 1850894.6 | CO86: -0.16
A87: 4.1 | H87: Расчеты по заработной плате | BA87: 808810.53 | BU87: 650109.29 | CO87: -0.2
A88: 4.2 | H88: Расчеты по прочим выплатам | BA88: 191.05 | BU88: 0 | CO88: -1
A89: 4.3 | H89: Расчеты по начислениям на выплаты по оплате труда | BA89: 60580.37 | BU89: 44592.35 | CO89: -0.26
A90: 4.4 | H90: Расчеты по прочим работам, услугам | BA90: 21304 | BU90: 0 | CO90: -1
A91: 4.5 | H91: Расчеты по налогу на доходы физических лиц | BA91: 288992 | BU91: 347634 | CO91: 0.2
A92: 4.6 | H92: Расчеты по страховым взносам на обязательное социальное страхование на случай временной нетрудоспособности и в связи с материнством | BA92: 4771.53 | BU92: 5756.3 | CO92: 0.21
A93: 4.7 | H93: Расчеты по прочим платежам в бюджет | BA93: 1302 | BU93: 1284 | CO93: 0.01
A94: 4.8 | H94: Расчеты по страховым взносам на обязательное социальное страхование от несчастных случаев на производстве и проффесиональных заболеваний | BA94: 4663.67 | BU94: 5439.68 | CO94: 0.16
A95: 4.9 | H95: Расчеты по страховым взносам на обязательное медицинское страхование в Федеральный ФОМС | BA95: 120162.94 | BU95: 145066.75 | CO95: 0.21
A96: 4.10 | H96: Расчеты по страховым взносам на обязательное пенсионное страхование на выплату страховой части трудовой пенсии | BA96: 835092.09 | BU96: 625778.19 | CO96: -0.25
A97: 4.11 | H97: Расчеты по налогу на имущество организаций | BA97: 8925 | BU97: 11909 | CO97: 0.33
A98: 4.12 | H98: Расчеты по земельному налогу | BA98: 35304 | BU98: 0 | CO98: -1
A99: 4.13 | H99: Расчеты по удержаниям из выплат по оплате труда | BA99: 22660.91 | BU99: 13325.04 | CO99: -0.41
A100: 4.13 | H100: Расчеты с плательщиками по доходам от оказания платных работ, услуг
A101: 4.14 | H101: Расчеты с плательщиками прочих доходов
A102: 5 | H102: Сумма доходов, полученных учреждением от оказания платных услуг(выполнения работ) | BA102: 1715050.8 | BU102: 2149368.29 | CO102: 0.25
A103: 6 | H103: Цены, тарифы на платные услуги, оказываемые потребителям | BA103: 320 | BU103: 320 | CO103: 1
A104: 7 | H104: общее количество потребителей, воспользовавшихся услугами учреждения | BA104: 277 | BU104: 322 | CO104: 0.16
H105: в том числе: платными | BA105: 60 | BU105: 87 | CO105: 0.45
A106: 8 | H106: Количество жалоб потребителей
A107: 9 | H107: Принятые по результатам рассмотрения жалоб меры
A111: Справочно:
A113: 1) | D113: Просроченная кредиторская задолженность:
D114: на начало отчетного периода | AF114: 316742.33 | AW114: руб.коп
D115: на конец отчетного периода | AF115: - | AW115: руб.коп.
A116: 2)_Общая сумма выставленных требований к возмещению ущерба по недостачам и хищениям материальных
D117: ценностей, денежных средств, а также от порчи материальных ценностей: | BU117: - | CL117: руб,коп.
A118: 3)_Причины образования дебиторской задолженности, нереальной к взысканию:
A120: 4)_Причины образования просроченной кредиторской задолженности:
A121: Недофинансирование в связи с приоритизацией расходов областного бюджета.
A123: 2.1. Исполнение плана финансово-хозяйственной деятельности.
A125: Наименование показателей | Y125: Код бюджетной классификации и операции сектора государственного управления | AM125: План (с учетом возвратов) | BV125: Кассовые поступления и выплаты
AM126: всего | AW126: в том числе: | BV126: всего | CF126: в том числе:
AW127: операции по лицевым счетам, открытым в органах казначейства | BJ127: операции по счетам, открытым в кредитных организациях | CF127: операции по лицевым счетам, открытым в органах казначейства | CS127: операции по счетам, открытым в кредитных организациях
B128: Остаток средств на начало текущего финансового года | Y128: Х | AM128: 690230.78 | AW128: 690230.78
B129: Поступления, всего | AM129: 45239600 | AW129: 45239600 | BV129: 45231968.29 | CF129: 45231968.29
B130: в том числе:
B131: субсидии на выполнение государственного задания | Y131: х | AM131: 43082600 | AW131: 43082600 | BV131: 43082600 | CF131: 43082600
B132: субсидии на иные цели, всего | Y132: х
B133: Поступления от оказания платных услуг (выполнения работ) и иной приносящей доход деятельности, всего | Y133: х | AM133: 2157000 | AW133: 2157000 | BV133: 2149368.29 | CF133: 2149368.29
B134: Выплаты за счет субсидии на выполнение государственного задания | Y134: 900 | AM134: =AM136+AM141+AM152+AM153+AM155 -> 43427500 | AW134: =AW136+AW141+AW152+AW153+AW155 -> 43427500 | BV134: =BV136+BV141+BV152+BV153+BV155 -> 42366217.1 | CF134: =CF136+CF141+CF152+CF153+CF155 -> 42366217.1
B135: в том числе
B136: оплата труда и начисления на выплаты по оплате труда, всего | Y136: 210 | AM136: =AM138+AM139+AM140 -> 32182800 | AW136: =AW138+AW139+AW140 -> 32182800 | BV136: =BV138+BV139+BV140 -> 32181328.31 | CF136: =CF138+CF139+CF140 -> 32181328.31
B137: из них:
B138: заработная плата | Y138: 211 | AM138: 24666400 | AW138: 24666400 | BV138: 24665222.72 | CF138: 24665222.72
B139: Прочие выплаты | Y139: 212 | AM139: 11400 | AW139: 11400 | BV139: 11387.68 | CF139: 11387.68
B140: начисления на выплаты по оплате труда | Y140: 213 | AM140: 7505000 | AW140: 7505000 | BV140: 7504717.91 | CF140: 7504717.91
B141: Оплата работ, услуг, всего | Y141: 220 | AM141: =AM143+AM144+AM145+AM146+AM147+AM148 -> 8997300 | AW141: =AW143+AW144+AW145+AW146+AW147+AW148 -> 8997300 | BV141: =BV143+BV144+BV145+BV146+BV147+BV148 -> 8536145.03 | CF141: =CF143+CF144+CF145+CF146+CF147+CF148 -> 8536145.03
B142: из них:
B143: услуги связи | Y143: 221 | AM143: 6129000 | AW143: 6129000 | BV143: 6127851.6 | CF143: 6127851.6
B144: транспортные услуги | Y144: 222 | AM144: 78400 | AW144: 78400 | BV144: 77474.5 | CF144: 77474.5
B145: коммунальные услуги | Y145: 223 | AM145: 562000 | AW145: 562000 | BV145: 461652.8 | CF145: 461652.8
B146: арендная плата за пользование имуществом | Y146: 224
B147: работы, услуги по содержанию имущества | Y147: 225 | AM147: 971500 | AW147: 971500 | BV147: 971061.31 | CF147: 971061.31
B148: прочие работы, услуги | Y148: 226 | AM148: 1256400 | AW148: 1256400 | BV148: 898104.82 | CF148: 898104.82
B149: Социальное обеспечение, всего | Y149: 260
B150: из них:
B151: пособия по социальной помощи населению | Y151: 262
B152: Прочие расходы | Y152: 290 | AM152: 140200 | AW152: 140200 | BV152: 134863.8 | CF152: 134863.8
B153: Приобретение основных средств | Y153: 310 | AM153: 1547300 | AW153: 1547300 | BV153: 954300 | CF153: 954300
B154: Приобретение нематериальных активов | Y154: 320
B155: Приобретение материальных запасов | Y155: 340 | AM155: 559900 | AW155: 559900 | BV155: 559579.96 | CF155: 559579.96
B156: Выплаты за счет субсидии на иные цели | Y156: 900
B157: в том числе
B158: оплата труда и начисления на выплаты по оплате труда, всего | Y158: 210
B159: из них:
B160: заработная плата | Y160: 211
B161: начисления на выплаты по оплате труда | Y161: 213
B162: Оплата работ, услуг, всего | Y162: 220
B163: из них:
B164: услуги связи | Y164: 221
B165: транспортные услуги | Y165: 222
B166: коммунальные услуги | Y166: 223
B167: арендная плата за пользование имуществом | Y167: 224
B168: работы, услуги по содержанию имущества | Y168: 225
B169: прочие работы, услуги | Y169: 226
B170: Социальное обеспечение, всего | Y170: 260
B171: из них:
B172: пособия по социальной помощи населению | Y172: 262
B173: Прочие расходы | Y173: 290
B174: Приобретение основных средств | Y174: 310
B175: Приобретение нематериальных активов | Y175: 320
B176: Приобретение материальных запасов | Y176: 340
B177: Выплаты за счет иной приносящей доход деятельности | Y177: 900 | AM177: 2502200 | AW177: 2502200 | BV177: =BV179+BV183+BV194+BV195 -> 2173539.39 | CF177: =CF179+CF183+CF194+CF195 -> 2173539.39
B178: в том числе
B179: оплата труда и начисления на выплаты по оплате труда, всего | Y179: 210 | AM179: =AM181+AM182 -> 2313800 | AW179: =AW181+AW182 -> 2313800 | BV179: =BV181+BV182 -> 2011858.2 | CF179: =CF181+CF182 -> 2011858.2
B180: из них:
B181: заработная плата | Y181: 211 | AM181: 1816700 | AW181: 1816700 | BV181: 1581890.34 | CF181: 1581890.34
B182: начисления на выплаты по оплате труда | Y182: 213 | AM182: 497100 | AW182: 497100 | BV182: 429967.86 | CF182: 429967.86
B183: Оплата работ, услуг, всего | Y183: 220 | AM183: =AM185+AM186+AM187+AM188+AM189+AM190 -> 103900 | AW183: =AW185+AW186+AW187+AW188+AW189+AW190 -> 103900 | BV183: =BV185+BV186+BV187+BV188+BV189+BV190 -> 81822.4 | CF183: =CF185+CF186+CF187+CF188+CF189+CF190 -> 81822.4
B184: из них:
B185: услуги связи | Y185: 221
B186: транспортные услуги | Y186: 222
B187: коммунальные услуги | Y187: 223
B188: арендная плата за пользование имуществом | Y188: 224
B189: работы, услуги по содержанию имущества | Y189: 225
B190: прочие работы, услуги | Y190: 226 | AM190: 103900 | AW190: 103900 | BV190: 81822.4 | CF190: 81822.4
B191: Социальное обеспечение, всего | Y191: 260
B192: из них:
B193: пособия по социальной помощи населению | Y193: 262
B194: Прочие расходы | Y194: 290 | AM194: 24100 | AW194: 24100 | BV194: 23737.79 | CF194: 23737.79
B195: Приобретение основных средств | Y195: 310 | AM195: 60400 | AW195: 60400 | BV195: 56121 | CF195: 56121
B196: Приобретение нематериальных активов | Y196: 320
B197: Приобретение материальных запасов | Y197: 340
B198: Планируемый остаток средств на конец текущего финансового года | BV198: 1382442.58
H201: III. Об использовании имущества, закрепленного за учреждением
A203: № п/п | G203: Наименование показателя | BQ203: На начало отчетного периода | CK203: На конец отчетного периода
A204: 1 | H204: Общая балансовая (остаточная) стоимость недвижимого имущества, находящегося у учреждения на праве оперативного управления ( руб.коп.)* | BQ204: 12923191.3 | CK204: 3694561.88
A205: 2 | H205: Общая балансовая (остаточная) стоимость недвижимого имущества, находящегося у учреждения на праве оперативного управления и переданного в аренду ( руб.коп.)*
A206: 3 | H206: Общая балансовая (остаточная) стоимость недвижимого имущества, находящегося у учреждения на праве оперативного управления и переданного в безвозмездное пользование (руб.коп.)* | BQ206: 12923191.3 | CK206: 3694561.88
A207: 4 | H207: Общая балансовая (остаточная) стоимость движимого имущества, находящегося у учреждения на праве оперативного управления ( руб.коп.)* | BQ207: 71170330.25 | CK207: 71866365.75
A208: 5 | H208: Общая балансовая (остаточная) стоимость движимого имущества, находящегося у учреждения на праве оперативного управления и переданного в аренду (руб.коп.)*
A209: 6 | H209: Общая балансовая (остаточная) стоимость движимого имущества, находящегося у учреждения на праве оперативного управления и переданного в безвозмездное пользование ( руб.коп.)* | BQ209: 711703300.2 | CK209: 71866365.75
A210: 7 | H210: Общая балансовая (остаточная) стоимость особо ценного движимого имущества, находящегося у учреждения на праве оперативного управления (руб.коп.)* | BQ210: 67582722.87 | CK210: 68181053.51
A211: 8 | H211: Общая балансовая (остаточная) стоимость особо ценного движимого имущества, находящегося у учреждения на праве оперативного управления и переданного в аренду (руб.коп.)*
A212: 9 | H212: Общая балансовая (остаточная) стоимость особо ценного движимого имущества, находящегося у учреждения на праве оперативного управления и переданного в безвозмездное пользование (руб.коп.)* | BQ212: 67582722.87 | CK212: 68181053.51
A213: 10 | H213: Общая площадь объектов недвижимого имущества, находящегося у учреждения на праве оперативного управления (кв. м) | BQ213: 5226.4 | CK213: 5194.1
A214: 11 | H214: Общая площадь объектов недвижимого имущества, находящегося у учреждения на праве оперативного управления и переданного в аренду (кв. м)
A215: 12 | H215: Общая площадь объектов недвижимого имущества, находящегося у учреждения на праве оперативного управления и переданного в безвозмездное пользование (кв. м) | BQ215: 5226.4 | CK215: 5194.1
A216: 13 | H216: Общая площадь объектов недвижимого имущества, арендуемых учреждением (кв. м)
A217: 14 | H217: Количество объектов недвижимого имущества, находящегося у учреждения на праве оперативного управления (шт.) | BQ217: 3 | CK217: 2
A218: 15 | H218: Общая балансовая (остаточная) стоимость недвижимого имущества, приобретенного учреждением в отчетном финансовом году за счет средств, выделенных учреждению учредителем на указанные цели ( руб.коп.)*
A219: 16 | H219: Общая балансовая (остаточная) стоимость недвижимого имущества, приобретенного учреждением в отчетном финансовом году за счет доходов, полученных от платных услуг и иной приносящей доход деятельности (руб.коп.)*
A220: 17 | H220: Объем средств, полученных в отчетном году от распоряжения в установленном порядке имуществом, находящимся у учреждения на праве оперативного управления ( руб.коп)
A223: Главный бухгалтер | BT223: Ж.Ю.Казакова
